Workbook

Sheet Entrada de nóminas
B1: CALCULADORA NÓMINA | K1: FIN PERÍODO: | L1: 41372 | N1: NOMBRE COMPAÑÍA: | P1: TRABAJOS DE RIESGO
B3: Id. | C3: Nombre empleado | D3: Horas normales trabajadas | E3: Horas vacaciones | F3: Horas de baja por enfermedad | G3: Horas extras | H3: Precio de horas extras | I3: Salario bruto | J3: Impuestos y deducciones | K3: Otras deducciones | L3: Salario neto | N3: Salario por horas | O3: Estado impuesto | P3: Subsidio nacional | Q3: Impuesto autonómico | R3: Impuesto IRPF nacional | S3: Impuesto S.S. | T3: Impuesto Atención Sanitaria | U3: Total retenciones impuestos | V3: Deducción seguros | W3: Otras deducciones normales | X3: Total deducciones normales
B4: 1001 | C4: Tony Smith | D4: 50 | E4: 5 | F4: 1 | I4: =SUM(Employees[[#This Row],[Horas normales trabajadas]:[Horas de baja por enfermedad]])*Employees[[#This Row],[Salario por horas]]+Employees[[#This Row],[Horas extras]]*Employees[[#This Row],[Precio de horas extras]] -> 560 | J4: =Employees[[#This Row],[Salario bruto]]*Employees[[#This Row],[Total retenciones impuestos]]+Employees[[#This Row],[Total deducciones normales]] -> 273.08 | K4: 20 | L4: =Employees[[#This Row],[Salario bruto]]-Employees[[#This Row],[Impuestos y deducciones]]-Employees[[#This Row],[Otras deducciones]] -> 266.92 | N4: 10 | O4: 1 | P4: 4 | Q4: 0.023 | R4: 0.28 | S4: 0.063 | T4: 0.0145 | U4: =SUM(Employees[[#This Row],[Impuesto autonómico]]:Employees[[#This Row],[Impuesto Atención Sanitaria]]) -> 0.3805 | V4: 20 | W4: 40 | X4: =SUM(Employees[[#This Row],[Deducción seguros]]:Employees[[#This Row],[Otras deducciones normales]]) -> 60
B5: 1002 | C5: David Jones | D5: 40 | I5: =SUM(Employees[[#This Row],[Horas normales trabajadas]:[Horas de baja por enfermedad]])*Employees[[#This Row],[Salario por horas]]+Employees[[#This Row],[Horas extras]]*Employees[[#This Row],[Precio de horas extras]] -> 320 | J5: =Employees[[#This Row],[Salario bruto]]*Employees[[#This Row],[Total retenciones impuestos]]+Employees[[#This Row],[Total deducciones normales]] -> 131.76 | L5: =Employees[[#This Row],[Salario bruto]]-Employees[[#This Row],[Impuestos y deducciones]]-Employees[[#This Row],[Otras deducciones]] -> 188.24 | N5: 8 | O5: 1 | P5: 1 | Q5: 0.023 | R5: 0.28 | S5: 0.063 | T5: 0.0145 | U5: =SUM(Employees[[#This Row],[Impuesto autonómico]]:Employees[[#This Row],[Impuesto Atención Sanitaria]]) -> 0.3805 | V5: 0 | W5: 10 | X5: =SUM(Employees[[#This Row],[Deducción seguros]]:Employees[[#This Row],[Otras deducciones normales]]) -> 10
B6: 1003 | C6: Denise Smith | D6: 35 | E6: 3 | I6: =SUM(Employees[[#This Row],[Horas normales trabajadas]:[Horas de baja por enfermedad]])*Employees[[#This Row],[Salario por horas]]+Employees[[#This Row],[Horas extras]]*Employees[[#This Row],[Precio de horas extras]] -> 532 | J6: =Employees[[#This Row],[Salario bruto]]*Employees[[#This Row],[Total retenciones impuestos]]+Employees[[#This Row],[Total deducciones normales]] -> 240.426 | L6: =Employees[[#This Row],[Salario bruto]]-Employees[[#This Row],[Impuestos y deducciones]]-Employees[[#This Row],[Otras deducciones]] -> 291.574 | N6: 14 | O6: 1 | P6: 3 | Q6: 0.023 | R6: 0.28 | S6: 0.063 | T6: 0.0145 | U6: =SUM(Employees[[#This Row],[Impuesto autonómico]]:Employees[[#This Row],[Impuesto Atención Sanitaria]]) -> 0.3805 | V6: 18 | W6: 20 | X6: =SUM(Employees[[#This Row],[Deducción seguros]]:Employees[[#This Row],[Otras deducciones normales]]) -> 38
B7: 1008 | C7: Sebastien Motte | D7: 50 | E7: 5 | F7: 1 | I7: =SUM(Employees[[#This Row],[Horas normales trabajadas]:[Horas de baja por enfermedad]])*Employees[[#This Row],[Salario por horas]]+Employees[[#This Row],[Horas extras]]*Employees[[#This Row],[Precio de horas extras]] -> 1120 | J7: =Employees[[#This Row],[Salario bruto]]*Employees[[#This Row],[Total retenciones impuestos]]+Employees[[#This Row],[Total deducciones normales]] -> 441.16 | L7: =Employees[[#This Row],[Salario bruto]]-Employees[[#This Row],[Impuestos y deducciones]]-Employees[[#This Row],[Otras deducciones]] -> 678.84 | N7: 20 | O7: 1 | P7: 0 | Q7: 0.023 | R7: 0.28 | S7: 0.063 | T7: 0.0145 | U7: =SUM(Employees[[#This Row],[Impuesto autonómico]]:Employees[[#This Row],[Impuesto Atención Sanitaria]]) -> 0.3805 | V7: 15 | X7: =SUM(Employees[[#This Row],[Deducción seguros]]:Employees[[#This Row],[Otras deducciones normales]]) -> 15
B8: 1011 | C8: Isabelle Scemla | D8: 40 | G8: 2 | H8: 15 | I8: =SUM(Employees[[#This Row],[Horas normales trabajadas]:[Horas de baja por enfermedad]])*Employees[[#This Row],[Salario por horas]]+Employees[[#This Row],[Horas extras]]*Employees[[#This Row],[Precio de horas extras]] -> 430 | J8: =Employees[[#This Row],[Salario bruto]]*Employees[[#This Row],[Total retenciones impuestos]]+Employees[[#This Row],[Total deducciones normales]] -> 223.615 | L8: =Employees[[#This Row],[Salario bruto]]-Employees[[#This Row],[Impuestos y deducciones]]-Employees[[#This Row],[Otras deducciones]] -> 206.385 | N8: 10 | O8: 1 | P8: 0 | Q8: 0.023 | R8: 0.28 | S8: 0.063 | T8: 0.0145 | U8: =SUM(Employees[[#This Row],[Impuesto autonómico]]:Employees[[#This Row],[Impuesto Atención Sanitaria]]) -> 0.3805 | V8: 20 | W8: 40 | X8: =SUM(Employees[[#This Row],[Deducción seguros]]:Employees[[#This Row],[Otras deducciones normales]]) -> 60
B9: 1012 | C9: David Bristol | D9: 40 | E9: 5 | F9: 1 | I9: =SUM(Employees[[#This Row],[Horas normales trabajadas]:[Horas de baja por enfermedad]])*Employees[[#This Row],[Salario por horas]]+Employees[[#This Row],[Horas extras]]*Employees[[#This Row],[Precio de horas extras]] -> 552 | J9: =Employees[[#This Row],[Salario bruto]]*Employees[[#This Row],[Total retenciones impuestos]]+Employees[[#This Row],[Total deducciones normales]] -> 270.036 | L9: =Employees[[#This Row],[Salario bruto]]-Employees[[#This Row],[Impuestos y deducciones]]-Employees[[#This Row],[Otras deducciones]] -> 281.964 | N9: 12 | O9: 1 | P9: 4 | Q9: 0.023 | R9: 0.28 | S9: 0.063 | T9: 0.0145 | U9: =SUM(Employees[[#This Row],[Impuesto autonómico]]:Employees[[#This Row],[Impuesto Atención Sanitaria]]) -> 0.3805 | V9: 20 | W9: 40 | X9: =SUM(Employees[[#This Row],[Deducción seguros]]:Employees[[#This Row],[Otras deducciones normales]]) -> 60
B10: 1025 | C10: Anne Weiler | D10: 36 | F10: 2 | G10: 1 | H10: 18 | I10: =SUM(Employees[[#This Row],[Horas normales trabajadas]:[Horas de baja por enfermedad]])*Employees[[#This Row],[Salario por horas]]+Employees[[#This Row],[Horas extras]]*Employees[[#This Row],[Precio de horas extras]] -> 474 | J10: =Employees[[#This Row],[Salario bruto]]*Employees[[#This Row],[Total retenciones impuestos]]+Employees[[#This Row],[Total deducciones normales]] -> 225.357 | K10: 25 | L10: =Employees[[#This Row],[Salario bruto]]-Employees[[#This Row],[Impuestos y deducciones]]-Employees[[#This Row],[Otras deducciones]] -> 223.643 | N10: 12 | O10: 1 | P10: 2 | Q10: 0.023 | R10: 0.28 | S10: 0.063 | T10: 0.0145 | U10: =SUM(Employees[[#This Row],[Impuesto autonómico]]:Employees[[#This Row],[Impuesto Atención Sanitaria]]) -> 0.3805 | V10: 25 | W10: 20 | X10: =SUM(Employees[[#This Row],[Deducción seguros]]:Employees[[#This Row],[Otras deducciones normales]]) -> 45
B11: 1032 | C11: Luka Abrus | D11: 40 | E11: 5 | F11: 1 | I11: =SUM(Employees[[#This Row],[Horas normales trabajadas]:[Horas de baja por enfermedad]])*Employees[[#This Row],[Salario por horas]]+Employees[[#This Row],[Horas extras]]*Employees[[#This Row],[Precio de horas extras]] -> 460 | J11: =Employees[[#This Row],[Salario bruto]]*Employees[[#This Row],[Total retenciones impuestos]]+Employees[[#This Row],[Total deducciones normales]] -> 175.03 | K11: 50 | L11: =Employees[[#This Row],[Salario bruto]]-Employees[[#This Row],[Impuestos y deducciones]]-Employees[[#This Row],[Otras deducciones]] -> 234.97 | N11: 10 | O11: 1 | P11: 3 | Q11: 0.023 | R11: 0.28 | S11: 0.063 | T11: 0.0145 | U11: =SUM(Employees[[#This Row],[Impuesto autonómico]]:Employees[[#This Row],[Impuesto Atención Sanitaria]]) -> 0.3805 | X11: =SUM(Employees[[#This Row],[Deducción seguros]]:Employees[[#This Row],[Otras deducciones normales]]) -> 0
B12: 1049 | C12: David Ludwig | D12: 40 | E12: 1 | I12: =SUM(Employees[[#This Row],[Horas normales trabajadas]:[Horas de baja por enfermedad]])*Employees[[#This Row],[Salario por horas]]+Employees[[#This Row],[Horas extras]]*Employees[[#This Row],[Precio de horas extras]] -> 615 | J12: =Employees[[#This Row],[Salario bruto]]*Employees[[#This Row],[Total retenciones impuestos]]+Employees[[#This Row],[Total deducciones normales]] -> 259.0075 | K12: 23 | L12: =Employees[[#This Row],[Salario bruto]]-Employees[[#This Row],[Impuestos y deducciones]]-Employees[[#This Row],[Otras deducciones]] -> 332.9925 | N12: 15 | O12: 1 | P12: 2 | Q12: 0.023 | R12: 0.28 | S12: 0.063 | T12: 0.0145 | U12: =SUM(Employees[[#This Row],[Impuesto autonómico]]:Employees[[#This Row],[Impuesto Atención Sanitaria]]) -> 0.3805 | V12: 25 | X12: =SUM(Employees[[#This Row],[Deducción seguros]]:Employees[[#This Row],[Otras deducciones normales]]) -> 25
B13: Totales | C13: =SUBTOTAL(103,Employees[Nombre empleado]) -> 9 | D13: =SUBTOTAL(109,Employees[Horas normales trabajadas]) -> 371 | E13: =SUBTOTAL(109,Employees[Horas vacaciones]) -> 24 | F13: =SUBTOTAL(109,Employees[Horas de baja por enfermedad]) -> 6 | G13: =SUBTOTAL(109,Employees[Horas extras]) -> 3 | I13: =SUBTOTAL(109,Employees[Salario bruto]) -> 5063 | J13: =SUBTOTAL(109,Employees[Impuestos y deducciones]) -> 2239.4715 | K13: =SUBTOTAL(109,Employees[Otras deducciones]) -> 118 | L13: =SUBTOTAL(109,Employees[Salario neto]) -> 2705.5285 | V13: =SUBTOTAL(109,Employees[Deducción seguros]) -> 143 | W13: =SUBTOTAL(109,Employees[Otras deducciones normales]) -> 170 | X13: =SUBTOTAL(109,Employees[Total deducciones normales]) -> 313

Sheet stubs_template (hidden)
C2: =CompanyName -> TRABAJOS DE RIESGO
C3: PERÍODO | D3: =PeriodEnding -> 41372 | G3: NOMBRE | H3: =IFERROR(INDEX(Employees[Nombre empleado],Stub),"") -> Tony Smith | K3: Id. EMPLEADO | L3: =IFERROR(INDEX(Employees[Id.],Stub),"") -> 1001
C4: Estado Impuestos | E4: =IFERROR(INDEX(Employees[Estado impuesto],Stub),"") -> 1 | G4: Subsidio Nacional (de W-4) | I4: =IFERROR(INDEX(Employees[Subsidio nacional],Stub),"") -> 4 | K4: Horas trabajadas | M4: =IFERROR(INDEX(Employees[Horas normales trabajadas],Stub),"") -> 50
C5: Precio de hora | E5: =IFERROR(INDEX(Employees[Salario por horas],Stub),"") -> 10 | G5: Precio de horas extras | I5: =IFERROR(INDEX(Employees[Precio de horas extras],Stub),"") -> 0 | K5: Horas de baja por enfermedad | M5: =IFERROR(INDEX(Employees[Horas de baja por enfermedad],Stub),"") -> 1
C6: Impuesto Seguridad Social | E6: =IFERROR(INDEX(Employees[Impuesto S.S.],Stub) * INDEX(Employees[Salario bruto],Stub),"") -> 35.28 | G6: Impuesto IRPF nacional | I6: =IFERROR(INDEX(Employees[Impuesto IRPF nacional],Stub) * INDEX(Employees[Salario bruto],Stub),"") -> 156.8 | K6: Horas vacaciones | M6: =IFERROR(INDEX(Employees[Horas vacaciones],Stub),"") -> 5
C7: Impuesto Atención Sanitaria | E7: =IFERROR(INDEX(Employees[Impuesto Atención Sanitaria],Stub) * INDEX(Employees[Salario bruto],Stub),"") -> 8.12 | G7: Impuesto autonómico | I7: =IFERROR(INDEX(Employees[Impuesto autonómico],Stub) * INDEX(Employees[Salario bruto],Stub),"") -> 12.88 | K7: Horas extras | M7: =IFERROR(INDEX(Employees[Horas extras],Stub),"") -> 0
C8: Deducción seguros | E8: =IFERROR(INDEX(Employees[Deducción seguros],Stub),"") -> 20 | G8: Otras deducciones normales | I8: =IFERROR(INDEX(Employees[Otras deducciones normales],Stub),"") -> 40 | K8: P | M8: =IFERROR(INDEX(Employees[Salario bruto],Stub),"") -> 560
C9: Total impuestos y | E9: =IFERROR(INDEX(Employees[Impuestos y deducciones],Stub),"") -> 273.08 | G9: Otras deducciones | I9: =IFERROR(INDEX(Employees[Otras deducciones],Stub),"") -> 20 | K9: Total impuestos y deducciones | M9: =IFERROR(INDEX(Employees[Impuestos y deducciones],Stub) + INDEX(Employees[Otras deducciones],Stub),"") -> 293.08
C10: deducciones normales
K11: SALARIO NETO | M11: =IFERROR(INDEX(Employees[Salario neto],Stub),"") -> 266.92
C14: =CompanyName -> TRABAJOS DE RIESGO
C15: PERÍODO | D15: =PeriodEnding -> 41372 | G15: NOMBRE | H15: =IFERROR(INDEX(Employees[Nombre empleado],Stub),"") -> David Jones | K15: Id. EMPLEADO | L15: =IFERROR(INDEX(Employees[Id.],Stub),"") -> 1002
C16: Estado Impuestos | E16: =IFERROR(INDEX(Employees[Estado impuesto],Stub),"") -> 1 | G16: Subsidio Nacional (de W-4) | I16: =IFERROR(INDEX(Employees[Subsidio nacional],Stub),"") -> 1 | K16: Horas trabajadas | M16: =IFERROR(INDEX(Employees[Horas normales trabajadas],Stub),"") -> 40
C17: Precio de hora | E17: =IFERROR(INDEX(Employees[Salario por horas],Stub),"") -> 8 | G17: Precio de horas extras | I17: =IFERROR(INDEX(Employees[Precio de horas extras],Stub),"") -> 0 | K17: Horas de baja por enfermedad | M17: =IFERROR(INDEX(Employees[Horas de baja por enfermedad],Stub),"") -> 0
C18: Impuesto Seguridad Social | E18: =IFERROR(INDEX(Employees[Impuesto S.S.],Stub) * INDEX(Employees[Salario bruto],Stub),"") -> 20.16 | G18: Impuesto IRPF nacional | I18: =IFERROR(INDEX(Employees[Impuesto IRPF nacional],Stub) * INDEX(Employees[Salario bruto],Stub),"") -> 89.6 | K18: Horas vacaciones | M18: =IFERROR(INDEX(Employees[Horas extras],Stub),"") -> 0
C19: Impuesto Atención Sanitaria | E19: =IFERROR(INDEX(Employees[Impuesto Atención Sanitaria],Stub) * INDEX(Employees[Salario bruto],Stub),"") -> 4.64 | G19: Impuesto autonómico | I19: =IFERROR(INDEX(Employees[Impuesto autonómico],Stub) * INDEX(Employees[Salario bruto],Stub),"") -> 7.36 | K19: Horas extras | M19: =IFERROR(INDEX(Employees[Horas extras],Stub),"") -> 0
C20: Deducción seguros | E20: =IFERROR(INDEX(Employees[Deducción seguros],Stub),"") -> 0 | G20: Otras deducciones normales | I20: =IFERROR(INDEX(Employees[Otras deducciones normales],Stub),"") -> 10 | K20: P | M20: =IFERROR(INDEX(Employees[Salario bruto],Stub),"") -> 320
C21: Total impuestos y | E21: =IFERROR(INDEX(Employees[Impuestos y deducciones],Stub),"") -> 131.76 | G21: Otras deducciones | I21: =IFERROR(INDEX(Employees[Otras deducciones],Stub),"") -> 0 | K21: Total impuestos y deducciones | M21: =IFERROR(INDEX(Employees[Impuestos y deducciones],Stub) + INDEX(Employees[Otras deducciones],Stub),"") -> 131.76
C22: deducciones normales
K23: SALARIO NETO | M23: =IFERROR(INDEX(Employees[Salario neto],Stub),"") -> 188.24
C26: =CompanyName -> TRABAJOS DE RIESGO
C27: PERÍODO | D27: =PeriodEnding -> 41372 | G27: NOMBRE | H27: =IFERROR(INDEX(Employees[Nombre empleado],Stub),"") -> Denise Smith | K27: Id. EMPLEADO | L27: =IFERROR(INDEX(Employees[Id.],Stub),"") -> 1003
C28: Estado Impuestos | E28: =IFERROR(INDEX(Employees[Estado impuesto],Stub),"") -> 1 | G28: Subsidio Nacional (de W-4) | I28: =IFERROR(INDEX(Employees[Subsidio nacional],Stub),"") -> 3 | K28: Horas trabajadas | M28: =IFERROR(INDEX(Employees[Horas normales trabajadas],Stub),"") -> 35
C29: Precio de hora | E29: =IFERROR(INDEX(Employees[Salario por horas],Stub),"") -> 14 | G29: Precio de horas extras | I29: =IFERROR(INDEX(Employees[Precio de horas extras],Stub),"") -> 0 | K29: Horas de baja por enfermedad | M29: =IFERROR(INDEX(Employees[Horas de baja por enfermedad],Stub),"") -> 0
C30: Impuesto Seguridad Social | E30: =IFERROR(INDEX(Employees[Impuesto S.S.],Stub) * INDEX(Employees[Salario bruto],Stub),"") -> 33.516 | G30: Impuesto IRPF nacional | I30: =IFERROR(INDEX(Employees[Impuesto IRPF nacional],Stub) * INDEX(Employees[Salario bruto],Stub),"") -> 148.96 | K30: Horas vacaciones | M30: =IFERROR(INDEX(Employees[Horas vacaciones],Stub),"") -> 3
C31: Impuesto Atención Sanitaria | E31: =IFERROR(INDEX(Employees[Impuesto Atención Sanitaria],Stub) * INDEX(Employees[Salario bruto],Stub),"") -> 7.714 | G31: Impuesto autonómico | I31: =IFERROR(INDEX(Employees[Impuesto autonómico],Stub) * INDEX(Employees[Salario bruto],Stub),"") -> 12.236 | K31: Horas extras | M31: =IFERROR(INDEX(Employees[Horas extras],Stub),"") -> 0
C32: Deducción seguros | E32: =IFERROR(INDEX(Employees[Deducción seguros],Stub),"") -> 18 | G32: Otras deducciones normales | I32: =IFERROR(INDEX(Employees[Otras deducciones normales],Stub),"") -> 20 | K32: P | M32: =IFERROR(INDEX(Employees[Salario bruto],Stub),"") -> 532
C33: Total impuestos y | E33: =IFERROR(INDEX(Employees[Impuestos y deducciones],Stub),"") -> 240.426 | G33: Otras deducciones | I33: =IFERROR(INDEX(Employees[Otras deducciones],Stub),"") -> 0 | K33: Total impuestos y deducciones | M33: =IFERROR(INDEX(Employees[Impuestos y deducciones],Stub) + INDEX(Employees[Otras deducciones],Stub),"") -> 240.426
C34: deducciones normales
K35: SALARIO NETO | M35: =IFERROR(INDEX(Employees[Salario neto],Stub),"") -> 291.574
C38: =CompanyName -> TRABAJOS DE RIESGO
C39: PERÍODO | D39: =PeriodEnding -> 41372 | G39: NOMBRE | H39: =IFERROR(INDEX(Employees[Nombre empleado],Stub),"") -> Sebastien Motte | K39: Id. EMPLEADO | L39: =IFERROR(INDEX(Employees[Id.],Stub),"") -> 1008
C40: Estado Impuestos | E40: =IFERROR(INDEX(Employees[Estado impuesto],Stub),"") -> 1 | G40: Subsidio Nacional (de W-4) | I40: =IFERROR(INDEX(Employees[Subsidio nacional],Stub),"") -> 0 | K40: Horas trabajadas | M40: =IFERROR(INDEX(Employees[Horas normales trabajadas],Stub),"") -> 50
C41: Precio de hora | E41: =IFERROR(INDEX(Employees[Salario por horas],Stub),"") -> 20 | G41: Precio de horas extras | I41: =IFERROR(INDEX(Employees[Precio de horas extras],Stub),"") -> 0 | K41: Horas de baja por enfermedad | M41: =IFERROR(INDEX(Employees[Horas de baja por enfermedad],Stub),"") -> 1
C42: Impuesto Seguridad Social | E42: =IFERROR(INDEX(Employees[Impuesto S.S.],Stub) * INDEX(Employees[Salario bruto],Stub),"") -> 70.56 | G42: Impuesto IRPF nacional | I42: =IFERROR(INDEX(Employees[Impuesto IRPF nacional],Stub) * INDEX(Employees[Salario bruto],Stub),"") -> 313.6 | K42: Horas vacaciones | M42: =IFERROR(INDEX(Employees[Horas vacaciones],Stub),"") -> 5
C43: Impuesto Atención Sanitaria | E43: =IFERROR(INDEX(Employees[Impuesto Atención Sanitaria],Stub) * INDEX(Employees[Salario bruto],Stub),"") -> 16.24 | G43: Impuesto autonómico | I43: =IFERROR(INDEX(Employees[Impuesto autonómico],Stub) * INDEX(Employees[Salario bruto],Stub),"") -> 25.76 | K43: Horas extras | M43: =IFERROR(INDEX(Employees[Horas extras],Stub),"") -> 0
C44: Deducción seguros | E44: =IFERROR(INDEX(Employees[Deducción seguros],Stub),"") -> 15 | G44: Otras deducciones normales | I44: =IFERROR(INDEX(Employees[Otras deducciones normales],Stub),"") -> 0 | K44: P | M44: =IFERROR(INDEX(Employees[Salario bruto],Stub),"") -> 1120
C45: Total impuestos y | E45: =IFERROR(INDEX(Employees[Impuestos y deducciones],Stub),"") -> 441.16 | G45: Otras deducciones | I45: =IFERROR(INDEX(Employees[Otras deducciones],Stub),"") -> 0 | K45: Total impuestos y deducciones | M45: =IFERROR(INDEX(Employees[Impuestos y deducciones],Stub) + INDEX(Employees[Otras deducciones],Stub),"") -> 441.16
C46: deducciones normales
K47: SALARIO NETO | M47: =IFERROR(INDEX(Employees[Salario neto],Stub),"") -> 678.84
